bitfinex-derivatives/quotes_ETHF0:USTF0_20250410
["timestamp","ask_amount","ask_price","bid_price","bid_amount"]
[1744291210739,1.25598,1593.2,1593.1,2.5113]
[1744291210940,1.25598,1593.2,1593.1,3.76731]
[1744291211140,1.25598,1593.2,1593.1,2.5113]
[1744291212141,1.25598,1593.2,1593.1,3.76731]
[1744291212841,1.25598,1593.2,1593.1,2.5113]
[1744291213141,1.26510929,1593.5,1593.4,1.25578]
[1744291213439,3.58300929,1593.5,1593.4,1.25578]
[1744291213738,3.58300929,1593.5,1593.3,3.2078]
[1744291213739,1.25578,1593.4,1593.3,6.78678]
[1744291213941,1.25593,1593.2,1593.1,4.46377]
[1744291214138,2.3179,1593.3,1593.2,1.25593]
[1744291214340,1.25582,1593.4,1593.3,1.25581]
[1744291214640,1.25585,1593.3,1593.2,2.3232]
[1744291214845,1.25585,1593.3,1593.2,3.57913]
[1744291215042,3.57374,1593.4,1593.3,1.25585]
[1744291215339,0.00933929,1593.5,1593.4,1.25578]
[1744291215544,0.00933929,1593.5,1593.4,9.71498]
[1744291216143,0.00933929,1593.5,1593.4,14.71498]
[1744291216343,9.29e-06,1593.5,1593.4,14.71498]
[1744291217143,9.29e-06,1593.5,1593.4,9.71498]
[1744291217647,1.25570929,1593.5,1593.4,6.136]
[1744291218443,1.25570929,1593.5,1593.4,7.39178]
[1744291218650,9.29e-06,1593.5,1593.4,7.39178]
[1744291218849,1.25570929,1593.5,1593.4,9.90398]
[1744291219455,1.25570929,1593.5,1593.4,8.6482]
[1744291219644,1.25570929,1593.5,1593.4,6.136]
[1744291220244,1.25570929,1593.5,1593.4,7.39178]
[1744291220645,9.29e-06,1593.5,1593.4,9.73808]
[1744291221447,1.25570929,1593.5,1593.4,9.73808]
[1744291221649,3.58700929,1593.5,1593.4,8.4823]
[1744291222150,3.58700929,1593.5,1593.4,9.73808]
[1744291222445,3.58700929,1593.5,1593.4,7.39178]
[1744291223854,9.29e-06,1593.5,1593.4,14.82238]
[1744291224052,9.29e-06,1593.5,1593.4,17.35208]
[1744291225244,7.29619821,1593.9,1593.8,1.25546]
[1744291225449,7.29619821,1593.9,1593.8,7.39046]
[1744291225849,7.29619821,1593.9,1593.8,12.19306]
[1744291226247,7.29619821,1593.9,1593.8,17.19306]
[1744291226555,7.29619821,1593.9,1593.8,12.19306]
[1744291228652,7.29619821,1593.9,1593.8,9.78216]
[1744291228953,8.55157821,1593.9,1593.8,9.78216]
[1744291229348,8.55157821,1593.9,1593.8,6.134]
[1744291229646,8.55157821,1593.9,1593.8,7.38946]
[1744291229953,8.55157821,1593.9,1593.8,6.134]
[1744291230554,1.25538,1593.9,1593.8,6.134]
[1744291230755,3.67598,1593.9,1593.8,6.134]
[1744291231556,1.25546,1593.8,1593.7,2.44571176]
[1744291231752,3.72926,1593.8,1593.7,3.70125176]
[1744291232458,2.4738,1593.8,1593.7,3.70125176]
[1744291232657,3.72926,1593.8,1593.7,3.70125176]
[1744291233155,1.25546,1593.8,1593.7,0.00941176]
[1744291233658,1.25546,1593.8,1593.7,1.26495176]
[1744291233853,3.72926,1593.8,1593.7,0.00941176]
[1744291234157,1.25544,1593.9,1593.8,1.25541]
[1744291234459,2.5298,1594.1,1593.8,3.13852]
[1744291234662,6.09839,1594.1,1594.0,1.2553]
[1744291234955,6.09839,1594.1,1593.9,8.4798]
[1744291234956,1.2553,1594.0,1593.9,6.133]
[1744291235158,3.5686,1594.0,1593.9,6.133]
[1744291235558,3.5686,1594.0,1593.9,7.38838]
[1744291236059,3.5686,1594.0,1593.9,6.133]
[1744291236259,8.5686,1594.0,1593.9,6.133]
[1744291236460,11.7764,1594.0,1593.9,6.133]
[1744291237351,1.25546,1593.8,1593.7,3.21721176]
[1744291237753,1.25546,1593.8,1593.7,4.47275176]
[1744291238451,3.67699,1593.9,1593.8,1.25546]
[1744291238860,2.5298,1594.1,1594.0,1.2553]
[1744291239154,1.25516,1594.2,1594.1,1.25522]
[1744291239364,3.6767,1594.3,1594.2,1.25514]
[1744291239658,3.6767,1594.3,1594.2,2.4971]
[1744291240056,3.6767,1594.3,1594.2,3.75224]
[1744291240262,3.6767,1594.3,1594.1,3.2078]
[1744291240263,1.25514,1594.2,1594.1,4.46299]
[1744291240461,3.67674,1594.2,1594.1,4.46299]
[1744291241761,1.25514,1594.3,1594.2,1.25514]
[1744291241961,1.25514,1594.3,1594.2,2.4015]
[1744291242257,1.25514,1594.3,1594.2,1.25512]
[1744291242456,48.09619821,1594.4,1594.3,1.25507]
[1744291242656,8.55118821,1594.4,1594.3,7.36407]
[1744291243158,9.61649821,1594.4,1594.3,7.36407]
[1744291243364,10.87148821,1594.4,1594.3,9.76557]
[1744291243961,10.87148821,1594.4,1594.3,6.109]
[1744291244666,3.57529,1594.4,1594.3,6.109]
[1744291244960,4.46267,1594.6,1594.3,6.109]
[1744291245263,1.25499,1594.4,1594.3,7.36401]
[1744291245463,1.25499,1594.4,1594.3,9.70721]
[1744291245654,1.25497,1594.5,1594.4,1.25498]
[1744291245852,3.78287,1594.5,1594.4,2.3432]
[1744291246065,1.25499,1594.4,1594.3,7.364]
[1744291246263,3.78289,1594.4,1594.3,9.7072]
[1744291247363,3.78289,1594.4,1594.3,6.109]
[1744291247760,3.78289,1594.4,1594.3,7.36407]
[1744291247960,2.5279,1594.4,1594.3,7.36407]
[1744291248160,2.5279,1594.4,1594.3,9.87347]
[1744291248567,3.78289,1594.4,1594.3,9.87347]
[1744291248973,3.78289,1594.4,1594.3,8.6184]
[1744291249267,3.78289,1594.4,1594.3,9.87347]
[1744291249466,48.64922,1594.7,1594.4,1.25496]
[1744291249657,3.7522384,1594.5,1594.4,1.25496]
[1744291249862,1.25487,1594.6,1594.5,1.25483]
[1744291250253,1.2415984,1594.6,1594.5,1.25483]
[1744291250458,1.25499,1594.4,1594.3,8.647]
[1744291250656,1.25499,1594.4,1594.2,2.4913]
[1744291250657,3.13728,1594.5,1594.0,6.34605]
[1744291250864,1.25518,1594.2,1594.1,1.25516]
[1744291251172,1.25513,1594.3,1594.2,1.25511]
[1744291251672,1.25514,1594.2,1594.1,3.55874]
[1744291252166,8.13801,1594.2,1593.8,3.2078]
[1744291252465,1.25538,1593.9,1593.8,6.76682]
[1744291252670,1.25546,1593.8,1593.7,9.89131176]
[1744291253169,1.25546,1593.8,1593.7,9.89135176]
[1744291253362,1.25546,1593.8,1593.7,6.11741176]
[1744291254066,3.71016,1593.8,1593.7,6.11741176]
[1744291254465,11.91796,1593.8,1593.7,0.00941176]
[1744291255875,11.91796,1593.8,1593.7,1.76e-06]
[1744291256171,59.053059,1593.8,1593.7,1.76e-06]
[1744291256470,1.25562,1593.6,1593.5,5.97799665]
[1744291256666,1.25578,1593.4,1593.3,14.74252058]
[1744291256874,4.46358,1593.4,1593.3,14.74252058]
[1744291257063,9.46358,1593.4,1593.3,14.74252058]
[1744291257259,52.81068,1593.4,1593.3,14.74252058]
[1744291258172,1.25585,1593.3,1593.2,0.00941176]
[1744291258374,6.13745,1593.3,1593.2,0.00941176]
[1744291258576,2.5471,1593.3,1593.2,1.26534176]
[1744291258781,44.60295,1593.3,1593.2,1.26534176]
[1744291259075,44.60295,1593.3,1593.2,0.00941176]
[1744291259576,44.60295,1593.3,1593.2,2.33501176]
[1744291259780,44.60295,1593.3,1593.2,0.00941176]
[1744291261875,42.05585,1593.3,1593.2,0.00941176]
[1744291262077,44.46885,1593.3,1593.2,0.00941176]
[1744291262468,49.46885,1593.3,1593.2,0.00941176]
[1744291262670,3.14045,1592.9,1592.5,8.55043]
[1744291262871,1.25641,1592.7,1592.6,1.25639]
[1744291263366,2.413,1592.8,1592.5,10.5018]
[1744291263567,1.25636,1592.7,1592.6,3.73575]
[1744291264386,1.25636,1592.7,1592.6,3.73581]
[1744291265282,1.25641,1592.6,1592.5,0.00941176]
[1744291265578,4.46421,1592.6,1592.5,0.00941176]
[1744291265768,1.25641,1592.6,1592.5,0.00941176]
[1744291265969,3.6479,1592.7,1592.5,0.00941176]
[1744291266168,1.25641,1592.6,1592.5,10.58563176]
[1744291266376,1.25641,1592.6,1592.5,12.99273176]
[1744291266681,3.64786,1592.7,1592.6,1.25641]
[1744291266889,3.64786,1592.7,1592.6,3.66351]
[1744291267181,3.64786,1592.7,1592.6,2.4071]
[1744291267385,3.64786,1592.7,1592.6,3.66351]
[1744291267978,2.3915,1592.7,1592.6,3.66351]
[1744291268176,1.25629,1592.8,1592.7,1.25633]
[1744291268376,1.25633,1592.7,1592.6,2.3512]
[1744291268677,1.25633,1592.7,1592.6,4.6568]
[1744291269175,1.25633,1592.7,1592.6,5.91321]
[1744291269378,1.25633,1592.7,1592.6,2.3512]
[1744291269571,1.25641,1592.6,1592.5,9.87543176]
[1744291269770,3.58631,1592.6,1592.5,9.87543176]
[1744291269969,3.14081,1592.8,1592.6,1.25637]
[1744291270183,3.58631,1592.7,1592.6,3.56197]
[1744291270382,3.58631,1592.7,1592.6,2.3056]
[1744291271485,1.25641,1592.6,1592.5,2.50701176]
[1744291271674,1.25641,1592.6,1592.5,0.00941176]
[1744291271987,8.54131,1592.6,1592.5,0.00941176]
[1744291272187,11.06201,1592.6,1592.5,0.00941176]
[1744291272485,6.06201,1592.6,1592.5,0.00941176]
[1744291272884,6.06201,1592.6,1592.5,1.26589176]
[1744291272885,3.77711,1592.6,1592.5,1.26589176]
[1744291273480,1.25639,1592.7,1592.6,1.25641]
[1744291273692,2.5207,1592.8,1592.7,1.25633]
[1744291273986,1.25633,1592.7,1592.6,5.84363]
[1744291274186,3.2078,1593.2,1592.6,9.5873]
[1744291274489,1.25604,1593.1,1593.0,1.25601]
[1744291274783,3.54414,1593.1,1593.0,7.34701]
[1744291275285,3.54414,1593.1,1593.0,6.091]
[1744291275887,3.54414,1593.1,1593.0,7.34709]
[1744291276085,3.54414,1593.1,1593.0,6.091]
[1744291276285,2.2881,1593.1,1593.0,7.34709]
[1744291276487,42.05592,1593.3,1593.2,1.25593]
[1744291276685,1.25593,1593.2,1593.1,3.58016]
[1744291277081,1.25593,1593.2,1593.1,2.3242]
[1744291277488,1.25593,1593.2,1593.1,3.58021]
[1744291277881,3.67823,1593.2,1593.1,2.3242]
[1744291278782,1.25601,1593.1,1593.0,8.5428]
[1744291278987,6.88611,1593.1,1593.0,8.5428]
[1744291279291,1.25609,1593.0,1592.9,2.4704]
[1744291279488,1.25617,1592.9,1592.8,1.25621]
[1744291279691,1.25617,1592.9,1592.8,3.72661]
[1744291279885,2.4223,1593.0,1592.7,9.66677]
[1744291280188,1.25625,1592.8,1592.7,12.08217]
[1744291280584,1.25625,1592.8,1592.7,10.8259]
[1744291280784,1.25625,1592.8,1592.7,12.08223]
[1744291280990,1.25625,1592.8,1592.7,10.8259]
[1744291281182,1.25641,1592.6,1592.5,0.00941176]
[1744291281382,1.25641,1592.6,1592.5,1.26589176]
[1744291281583,1.25641,1592.6,1592.5,0.00941176]
[1744291282386,1.25641,1592.6,1592.5,1.26589176]
[1744291282595,1.25633,1592.8,1592.7,1.25629]
[1744291283189,1.25632,1592.8,1592.7,1.25629]
[1744291283583,3.57592,1592.9,1592.8,1.25625]
[1744291283783,1.25625,1592.8,1592.7,12.34063]
[1744291283993,1.25623,1592.9,1592.8,1.25625]
[1744291284183,1.25623,1592.9,1592.8,2.5064]
[1744291284378,6.20906,1593.0,1592.8,2.5064]
[1744291284587,6.20906,1593.0,1592.9,1.25617]
[1744291284790,2.4811,1593.0,1592.9,1.25617]
[1744291284992,1.256,1593.2,1593.1,1.25599]
[1744291285490,46.84482,1593.3,1593.2,1.25593]
[1744291285683,0.00941176,1593.5,1593.1,12.43883]
[1744291285887,0.00941176,1593.5,1593.4,1.25578]
[1744291286290,0.00941176,1593.5,1593.4,6.25578]
[1744291286591,0.00941176,1593.5,1593.4,8.56208]
[1744291286790,1.26511176,1593.5,1593.4,2.3063]
[1744291286985,0.00941176,1593.5,1593.4,9.65308]
[1744291287594,0.00941176,1593.5,1593.4,14.65308]
[1744291288184,4.83726422,1593.8,1593.7,1.25554]
[1744291288385,4.83726422,1593.8,1593.7,4.46334]
[1744291288589,4.83726422,1593.8,1593.7,9.46334]
[1744291288989,4.83726422,1593.8,1593.7,11.72964]
[1744291291502,0.00941176,1593.9,1593.8,1.25546]
[1744291291799,0.00941176,1593.9,1593.8,9.67516]
[1744291291999,2.42131176,1593.9,1593.8,9.67516]
[1744291292402,3.67669176,1593.9,1593.8,6.09]
[1744291292796,2.42131176,1593.9,1593.8,7.34546]
[1744291293398,0.00941176,1593.9,1593.8,7.34546]
[1744291293702,1.26479176,1593.9,1593.8,7.34546]
[1744291293895,0.00941176,1593.9,1593.8,7.34546]
[1744291294292,3.56499176,1593.9,1593.8,6.09]
[1744291295104,44.36499176,1593.9,1593.8,6.09]
[1744291295504,43.10961176,1593.9,1593.8,7.34546]
[1744291296200,43.10961176,1593.9,1593.7,2.3456]
[1744291296201,1.25546,1593.8,1593.7,1.25547]
[1744291296406,3.48926,1593.8,1593.7,1.25547]
[1744291296607,2.2338,1593.8,1593.7,1.25547]
[1744291296910,2.2338,1593.8,1593.7,3.60107]
[1744291298102,3.48926,1593.8,1593.7,3.60107]
[1744291298303,1.25554,1593.7,1593.6,0.00941176]
[1744291298503,6.08694,1593.7,1593.6,0.00941176]
[1744291298705,11.08694,1593.7,1593.6,0.00941176]
[1744291299014,13.48394,1593.7,1593.6,0.00941176]
[1744291299607,8.48394,1593.7,1593.6,0.00941176]
[1744291300215,8.48394,1593.7,1593.6,1.26503176]
[1744291300701,8.48394,1593.7,1593.6,0.00941176]
[1744291302415,16.69174,1593.7,1593.6,0.00941176]
[1744291304702,21.5012,1593.7,1592.8,95.755]
[1744291304904,1.2561,1593.0,1592.7,14.84611]
[1744291305107,1.2561,1593.0,1592.9,1.2561]
[1744291305411,1.25613,1593.0,1592.9,1.25613]
[1744291306109,1.25611,1593.0,1592.9,1.2561]
[1744291307717,2.39631176,1593.1,1593.0,1.25609]
[1744291308015,0.00941176,1593.1,1593.0,7.32209]
[1744291308206,3.65752176,1593.1,1593.0,7.32209]
[1744291308714,3.65752176,1593.1,1593.0,9.71349]
[1744291309101,2.40151176,1593.1,1593.0,9.71349]
[1744291310718,0.00941176,1593.1,1593.0,12.14499]
[1744291311113,0.00941176,1593.1,1593.0,17.14499]
[1744291311317,0.00941176,1593.1,1593.0,12.14499]
[1744291312508,1.26542176,1593.1,1593.0,7.32209]
[1744291312708,0.00941176,1593.1,1593.0,7.32209]
[1744291312909,1.26542176,1593.1,1593.0,9.71839]
[1744291313412,1.26542176,1593.1,1593.0,7.32209]
[1744291314007,0.00941176,1593.1,1593.0,7.32209]
[1744291314218,0.00941176,1593.1,1593.0,9.57619]
[1744291318212,1.76e-06,1593.1,1593.0,9.57619]
[1744291318416,1.76e-06,1593.1,1593.0,110.30719]
[1744291319131,1.76e-06,1593.1,1593.0,116.30319]
[1744291320419,4.83726422,1593.8,1593.7,1.25554]
[1744291321021,4.83726422,1593.8,1593.7,3.67214]
[1744291322226,4.83726422,1593.8,1593.7,6.87994]
[1744291322416,7.13376422,1593.8,1593.6,9.75595]
[1744291322613,3.64154,1593.7,1593.6,7.32155]
[1744291322920,2.386,1593.7,1593.6,7.32155]
[1744291323119,4.83726422,1593.8,1593.7,1.25554]
[1744291323320,4.83726422,1593.8,1593.7,11.47824]
[1744291325526,0.00941176,1593.9,1593.8,1.25546]
[1744291325727,0.00941176,1593.9,1593.7,10.2227]
[1744291325728,2.38361176,1593.9,1593.6,9.20487]
[1744291325927,1.25546,1593.8,1593.7,0.00941176]
[1744291326231,1.25546,1593.8,1593.7,1.26495176]
[1744291326433,2.3742,1593.8,1593.7,1.26495176]
[1744291326635,2.3742,1593.8,1593.7,3.61175176]
[1744291326822,3.62966,1593.8,1593.7,3.61175176]
[1744291327232,3.62966,1593.8,1593.7,1.26495176]
[1744291327426,3.62966,1593.8,1593.7,0.00941176]
[1744291327427,8.62966,1593.8,1593.7,0.00941176]
[1744291327732,11.04486,1593.8,1593.7,0.00941176]
[1744291328234,6.04486,1593.8,1593.7,1.26495176]
[1744291328530,2.3742,1593.8,1593.7,1.26495176]
[1744291329018,2.3742,1593.8,1593.7,3.57295176]
[1744291329222,8.62966,1593.8,1593.7,0.00941176]
[1744291329632,11.04486,1593.8,1593.7,0.00941176]
[1744291330727,6.04486,1593.8,1593.7,1.26495176]
[1744291331129,11.04486,1593.8,1593.7,0.00941176]
[1744291332326,1.25592,1593.3,1593.2,1.25587]
[1744291332526,1.25584,1593.4,1593.3,1.2558]
[1744291333424,2.3315,1593.4,1593.3,1.2558]
[1744291333623,2.3315,1593.4,1593.3,4.4636]
[1744291333827,3.58728,1593.4,1593.3,4.4636]
[1744291334234,2.3315,1593.4,1593.3,4.4636]
[1744291334435,3.58728,1593.4,1593.3,1.2558]
[1744291335032,1.25585,1593.3,1593.2,1.26530176]
[1744291335231,3.55675,1593.3,1593.2,1.26530176]
[1744291335925,2.3009,1593.3,1593.2,1.26530176]
[1744291336131,2.3009,1593.3,1593.2,3.62810176]
[1744291336441,2.4566,1593.5,1593.4,1.25578]
[1744291336738,2.3009,1593.6,1593.5,1.2557]
[1744291337036,4.46331,1593.8,1593.7,1.25554]
[1744291337437,1.25551,1593.8,1593.7,1.25554]
[1744291338026,1.25562,1593.6,1593.5,7.29865]
[1744291338227,1.2556,1593.7,1593.6,1.25556]
[1744291338433,8.44246422,1593.7,1593.6,1.25556]
[1744291338634,7.18686422,1593.7,1593.6,1.25556]
[1744291338933,8.44240422,1593.7,1593.6,1.25556]
[1744291339141,7.18686422,1593.7,1593.6,1.25556]
[1744291339329,4.83726422,1593.7,1593.6,3.65196]
[1744291339730,4.83726422,1593.7,1593.6,8.65196]
[1744291340739,7.29619821,1593.8,1593.7,1.25554]
[1744291341035,8.52e-06,1593.8,1593.7,7.34274]
[1744291341241,8.15357615,1593.9,1593.8,1.25546]
[1744291341442,5.05013615,1593.9,1593.8,115.92576]
[1744291341747,11.8444277,1594.1,1594.0,1.2553]
[1744291341936,10.0902577,1594.1,1594.0,4.4631]
[1744291342238,6.6654877,1594.1,1594.0,9.4631]
[1744291342542,19.36047829,1594.5,1594.4,1.25499]
[1744291342736,12.13822544,1594.5,1594.4,10.50579]
[1744291343041,14.31551096,1594.8,1594.7,1.25475]
[1744291343242,14.30223936,1594.8,1594.7,10.50455]
[1744291343537,19.30223936,1594.8,1594.4,16.50074]
[1744291343736,8.40395,1594.7,1594.6,0.00941176]
[1744291344135,13.40395,1594.7,1594.6,0.00941176]
[1744291345246,54.20395,1594.7,1594.6,0.00941176]
[1744291345428,1.25491,1594.5,1594.4,6.042]
[1744291345629,1.25491,1594.5,1594.4,6.0287284]
[1744291346041,3.66571,1594.5,1594.4,6.0287284]
[1744291347041,3.66571,1594.5,1594.4,7.2837184]
[1744291347540,3.66571,1594.5,1594.4,6.0287284]
[1744291347845,3.66571,1594.5,1594.4,7.2837184]
[1744291348039,2.4108,1594.5,1594.4,7.2837184]
[1744291348550,3.66571,1594.5,1594.4,7.2837184]
[1744291349141,0.00941176,1594.6,1594.5,1.25491]
[1744291349347,3.60005,1594.7,1594.6,0.00385984]
[1744291349643,46.72915,1594.7,1594.6,0.00385984]
[1744291349847,1.25105016,1594.5,1594.4,7.2836984]
[1744291350146,1.25105016,1594.5,1594.4,6.0154568]
[1744291351038,6.25105016,1594.5,1594.4,6.0154568]
[1744291351350,1.25499,1594.4,1594.3,0.00941176]
[1744291351547,6.88679,1594.4,1594.3,0.00941176]
[1744291351744,11.88679,1594.4,1594.3,0.00941176]
[1744291351943,3.67899,1594.4,1594.3,0.00941176]
[1744291352348,11.88679,1594.4,1594.3,0.00941176]
[1744291354850,6.88679,1594.4,1594.3,0.00941176]
[1744291356849,11.88679,1594.4,1594.3,1.76e-06]
[1744291357045,1.25554,1593.7,1593.6,11.6787]
[1744291357353,1.2557,1593.5,1593.4,4.721]
[1744291357649,1.2557,1593.5,1593.4,5.97678]
[1744291357850,4.7732,1593.8,1593.4,15.3597]
[1744291358046,4.7732,1593.8,1593.5,2.4309]
[1744291358047,10.36378,1593.8,1593.5,2.4309]
[1744291358253,1.25559,1593.7,1593.6,7.27456]
[1744291358551,1.25559,1593.7,1593.6,12.27456]
[1744291358753,1.25559,1593.7,1593.6,15.48236]
[1744291359057,1.25559,1593.7,1593.6,6.019]
[1744291359352,3.53649,1593.7,1593.6,6.019]
[1744291359552,3.53649,1593.7,1593.6,8.4259]
[1744291359854,3.53649,1593.7,1593.6,6.019]
[1744291360350,0.00941176,1593.8,1593.7,1.25554]
[1744291360557,0.00941176,1593.8,1593.7,3.66244]
[1744291360750,0.00941176,1593.8,1593.7,8.66244]
[1744291361757,1.2551,1594.3,1594.2,1.25509]
[1744291361963,1.25518,1594.2,1594.1,1.25516]
[1744291362156,1.25522,1594.1,1594.0,5.88486]
[1744291362357,3.69002,1594.1,1594.0,11.90386]
[1744291362654,3.69002,1594.1,1594.0,7.27426]
[1744291362960,3.69002,1594.1,1594.0,6.019]
[1744291363855,3.69002,1594.1,1594.0,7.2743]
[1744291364356,43.2069,1594.2,1594.1,1.25522]
[1744291364554,6.12573,1594.3,1594.2,1.25514]
[1744291364754,1.25522,1594.1,1594.0,9.73512]
[1744291364949,1.25522,1594.1,1594.0,7.27422]
[1744291365151,42.05522,1594.1,1594.0,7.27422]
[1744291365457,42.05522,1594.1,1594.0,6.019]
[1744291365658,42.05522,1594.1,1594.0,7.2743]
[1744291366250,40.8,1594.1,1594.0,7.2743]
[1744291366459,3.69001,1594.2,1594.1,1.25522]
[1744291366861,44.49001,1594.2,1594.1,1.25522]
[1744291367060,1.25507,1594.3,1594.2,1.25514]
[1744291367754,42.05503,1594.4,1594.3,1.25507]
[1744291367953,42.05503,1594.4,1594.3,7.27407]
[1744291368262,1.25503,1594.4,1594.3,7.27407]
[1744291368657,42.05503,1594.4,1594.3,7.27407]
[1744291369353,40.8,1594.4,1594.3,10.48187]
[1744291369547,3.65296,1594.5,1594.4,1.25499]
[1744291369961,44.45296,1594.5,1594.4,1.25499]
[1744291371665,42.05496,1594.5,1594.4,1.25499]
[1744291373461,1.25496,1594.5,1594.4,1.25499]
[1744291373664,1.25499,1594.4,1594.3,7.28341176]
[1744291373965,1.25498,1594.5,1594.4,1.25496]
[1744291374165,3.54898,1594.5,1594.4,1.25496]
[1744291374462,1.25499,1594.4,1594.3,6.02841176]
[1744291374662,1.25499,1594.4,1594.3,7.28346176]
[1744291375262,42.05499,1594.4,1594.3,7.28346176]
[1744291378166,1.25499,1594.4,1594.3,7.28346176]
[1744291378766,42.05499,1594.4,1594.3,7.28346176]
[1744291379861,42.05499,1594.4,1594.3,6.02841176]
[1744291380066,47.70989,1594.4,1594.3,0.00941176]
[1744291381067,1.25538,1593.9,1593.8,11.06710805]
[1744291381863,1.25538,1593.9,1593.8,13.25200805]
[1744291382171,1.25538,1593.9,1593.8,11.99656805]
[1744291382470,1.25538,1593.9,1593.8,9.81166805]
[1744291382671,1.25538,1593.9,1593.8,11.06712805]
[1744291382868,1.25538,1593.9,1593.8,9.81166805]
[1744291383170,3.34788,1593.9,1593.8,9.81166805]
[1744291383569,5.57078,1593.9,1593.8,9.81166805]
[1744291384572,5.57078,1593.9,1593.8,11.06712805]
[1744291384773,2.2229,1593.9,1593.8,11.06712805]
[1744291385071,0.00941176,1594.0,1593.9,1.25538]
[1744291385269,1.26471176,1594.0,1593.9,9.36798]
[1744291385571,1.26471176,1594.0,1593.9,6.019]
[1744291385762,42.06471176,1594.0,1593.9,6.019]
[1744291385965,1.25546,1593.8,1593.7,0.00941176]
[1744291386163,1.25546,1593.8,1593.7,6.02841176]
[1744291386363,1.25546,1593.8,1593.7,7.28395176]
[1744291386674,1.25546,1593.8,1593.7,6.02841176]
[1744291386870,3.49826,1593.8,1593.7,6.02841176]
[1744291390569,1.25546,1593.8,1593.7,9.52655176]
[1744291391474,2.2229,1593.9,1593.8,1.25546]
[1744291391685,1.25538,1593.9,1593.8,2.2426]
[1744291391987,0.00941176,1594.0,1593.9,1.25538]
[1744291392169,1.26471176,1594.0,1593.9,4.46318]
[1744291392366,1.26471176,1594.0,1593.9,6.70578]
[1744291393381,0.00941176,1594.0,1593.9,6.70578]
[1744291394079,1.26471176,1594.0,1593.9,3.49798]
[1744291394275,3.53551176,1594.0,1593.9,3.49798]
[1744291394675,2.28021176,1594.0,1593.9,3.49798]
[1744291394981,2.28021176,1594.0,1593.9,6.70578]
[1744291395283,3.53551176,1594.0,1593.9,6.70578]
[1744291395580,2.28021176,1594.0,1593.9,6.70578]
[1744291395876,3.53551176,1594.0,1593.9,6.70578]
[1744291396180,2.28021176,1594.0,1593.9,6.70578]
[1744291396379,3.53551176,1594.0,1593.9,6.70578]
[1744291396684,2.28021176,1594.0,1593.9,6.70578]
[1744291396983,3.53551176,1594.0,1593.9,6.70578]
[1744291397279,2.28021176,1594.0,1593.9,6.70578]
[1744291397469,3.53551176,1594.0,1593.9,6.70578]
[1744291397979,0.02363161,2416.5,1593.9,6.70578]
[1744291397980,3.13717,1594.6,1594.1,3.1379]
[1744291398178,1.25506,1594.4,1594.3,1.25504]
[1744291398373,2.0667,1594.5,1594.4,1.25499]
[1744291398575,11.9622537,1594.7,1594.6,1.25483]
[1744291398777,14.1046821,1594.7,1594.6,1.25483]
[1744291398975,11.8347821,1594.7,1594.6,1.25483]
[1744291399179,52.6347821,1594.7,1594.6,1.25483]
[1744291399371,9.6790821,1594.7,1594.6,1.25483]
[1744291399687,9.6790821,1594.7,1594.6,11.58613]
[1744291400179,12.11618768,1595.1,1595.0,1.25452]
[1744291400381,12.11618768,1595.1,1595.0,7.25152]
[1744291400775,12.11618768,1595.1,1595.0,11.66402]
[1744291401186,13.37062768,1595.1,1595.0,11.66402]
[1744291401780,12.11618768,1595.1,1595.0,11.66402]
[1744291402286,12.11618768,1595.1,1595.0,16.66402]
[1744291402790,4.08416768,1595.1,1595.0,16.66402]
[1744291403085,7.68e-06,1595.1,1595.0,16.66402]
[1744291403286,14.47882375,1595.4,1595.3,1.25428]
[1744291403588,14.47882375,1595.4,1595.3,10.45808]
[1744291403782,14.47882375,1595.4,1595.3,15.45808]
[1744291404283,1.25428,1595.3,1595.2,1.25431]
[1744291404486,1.25428,1595.3,1595.2,1.25436]
[1744291404678,3.39818,1595.3,1595.1,10.45818]
[1744291404983,14.47882375,1595.4,1595.3,1.25428]
[1744291405189,14.47882375,1595.4,1595.3,4.46208]
[1744291405383,16.70142946,1595.6,1595.3,4.46208]
[1744291405384,1.25407,1595.6,1595.3,3.2078]
[1744291405579,2.2473,1595.6,1595.5,1.25412]
[1744291405784,7.29034935,1595.7,1595.6,1.25404]
[1744291405983,7.29034935,1595.7,1595.6,3.35184]
[1744291407385,7.29034935,1595.7,1595.6,8.35184]
[1744291407591,7.29034935,1595.7,1595.6,9.83914]
[1744291407789,7.29034935,1595.7,1595.6,4.83914]
[1744291408486,7.29034935,1595.7,1595.6,1.25404]
[1744291408684,7.29034935,1595.7,1595.6,6.25404]
[1744291409196,1.25377,1596.0,1595.9,1.25381]
[1744291409385,3.08147,1596.0,1595.9,7.24781]
[1744291409785,3.08147,1596.0,1595.9,5.994]
[1744291411092,1.25381,1595.9,1595.8,0.00941176]
[1744291411287,3.11771,1595.9,1595.8,0.00941176]
[1744291411885,6.32551,1595.9,1595.8,0.00941176]
[1744291412086,3.11771,1595.9,1595.8,0.00941176]
[1744291412492,8.11771,1595.9,1595.8,0.00941176]
[1744291413091,11.32551,1595.9,1595.8,0.00941176]
[1744291413493,8.11771,1595.9,1595.8,0.00941176]
[1744291413693,3.11771,1595.9,1595.8,0.00941176]
[1744291413896,3.11771,1595.9,1595.8,1.26330176]
[1744291414092,3.11771,1595.9,1595.8,0.00941176]
[1744291415588,6.32551,1595.9,1595.8,0.00941176]
[1744291415894,11.32551,1595.9,1595.8,0.00941176]
[1744291416093,1.25404,1595.6,1595.5,101.612]
[1744291416586,1.25404,1595.6,1595.5,5.993]
[1744291417287,1.25404,1595.6,1594.4,0.45900882]
[1744291417288,3.13531,1595.5,1594.6,9.81166805]
[1744291417494,1.25475,1594.7,1594.6,9.81166805]
[1744291417791,3.13643,1595.0,1594.6,9.81166805]
[1744291417985,40.8,1594.7,1594.6,11.06649805]
[1744291418189,3.14612,1594.8,1594.6,12.96169805]
[1744291418395,3.14612,1594.8,1594.7,1.8952]